fUST/lending_fUST_20250626
["ID","MTS","AMOUNT","RATE_DAILY","PERIOD"]
[367615230,1750875047726,-160.0,0.0001709,2]
[367615231,1750875047736,-160.0,0.0001709,2]
[367615232,1750875047746,-836.86812089,0.0001709,2]
[367615233,1750875047755,-230.22714675,0.0001709,2]
[367615234,1750875047765,-160.0,0.0001709,2]
[367615235,1750875047774,-160.0,0.0001709,2]
[367615236,1750875047783,-337.0,0.00017092,2]
[367615237,1750875047793,-500.0,0.00017095,2]
[367615238,1750875047802,-151.0,0.000171,2]
[367615239,1750875047811,-512.0,0.00017123,2]
[367615240,1750875047821,-4865.38270491,0.00017176,2]
[367615241,1750875047830,-500.0,0.00017178,2]
[367615242,1750875047840,-500.0,0.00017178,2]
[367615243,1750875047850,-390.20006425,0.00017178,2]
[367615244,1750875047859,-515.97466061,0.00017178,2]
[367615245,1750875047869,-500.0,0.00017186,2]
[367615246,1750875047878,-500.0,0.00017186,2]
[367615247,1750875047888,-500.0,0.00017186,2]
[367615248,1750875047897,-500.0,0.00017186,2]
[367615249,1750875047907,-500.0,0.00017186,2]
[367615250,1750875047917,-500.0,0.00017186,2]
[367615251,1750875047926,-500.0,0.00017186,2]
[367615252,1750875047935,-500.0,0.00017186,2]
[367615253,1750875047944,-500.0,0.00017186,2]
[367615254,1750875047954,-500.0,0.00017186,2]
[367615255,1750875047963,-502.89171688,0.00017186,2]
[367615256,1750875047974,-500.0,0.00017194,2]
[367615257,1750875047983,-500.0,0.00017194,2]
[367615258,1750875047992,-500.0,0.00017194,2]
[367615259,1750875048001,-500.0,0.00017194,2]
[367615260,1750875048011,-500.0,0.000172,2]
[367615261,1750875048021,-500.0,0.000172,2]
[367615262,1750875048030,-500.0,0.000172,2]
[367615263,1750875048039,-500.0,0.000172,2]
[367615264,1750875048049,-500.0,0.000172,2]
[367615265,1750875048058,-500.0,0.000172,2]
[367615266,1750875048068,-394.60635573,0.00017206,2]
[367615267,1750875048078,-236.22880927,0.00017257,2]
[367615268,1750875048087,-460.0,0.00017259,2]
[367615269,1750875048096,-460.0,0.00017259,2]
[367615270,1750875048106,-919.91,0.00017259,2]
[367615271,1750875048115,-460.0,0.00017259,2]
[367615272,1750875048126,-1774.36,0.00017259,2]
[367615273,1750875048135,-460.0,0.00017259,2]
[367615274,1750875048144,-1067.85,0.00017259,2]
[367615275,1750875048154,-460.0,0.00017259,2]
[367615276,1750875048163,-1894.0,0.00017259,2]
[367615277,1750875048172,-531.84,0.00017259,2]
[367615278,1750875048181,-460.0,0.00017259,2]
[367615279,1750875048191,-5355.52,0.00017259,2]
[367615280,1750875048200,-1378.42,0.00017259,2]
[367615281,1750875048209,-1835.32,0.00017259,2]
[367615282,1750875048219,-460.0,0.00017259,2]
[367615283,1750875048228,-1274.51,0.00017259,2]
[367615284,1750875048238,-460.0,0.00017259,2]
[367615285,1750875048248,-460.0,0.0001726,2]
[367615286,1750875048258,-460.0,0.0001726,2]
[367615287,1750875048268,-460.0,0.0001726,2]
[367615288,1750875048278,-460.0,0.0001726,2]
[367615289,1750875048287,-178.16,0.0001726,2]
[367615290,1750875048296,-460.0,0.0001726,2]
[367615291,1750875048306,-460.0,0.0001726,2]
[367615292,1750875048316,-445.67,0.0001726,2]
[367615293,1750875048325,-601.28,0.0001726,2]
[367615294,1750875048335,-595.54,0.0001726,2]
[367615295,1750875048344,-198.6,0.0001726,2]
[367615296,1750875048354,-460.0,0.0001726,2]
[367615297,1750875048363,-358.6,0.0001726,2]
[367615298,1750875048373,-460.0,0.0001726,2]
[367615299,1750875048383,-460.0,0.0001726,2]
[367615300,1750875048392,-219.26,0.0001726,2]
[367615301,1750875048401,-460.0,0.0001726,2]
[367615302,1750875048410,-374.42,0.0001726,2]
[367615303,1750875048420,-460.0,0.0001726,2]
[367615304,1750875048429,-460.0,0.0001726,2]
[367615305,1750875048438,-764.86,0.0001726,2]
[367615306,1750875048448,-603.24,0.0001726,2]
[367615307,1750875048457,-460.0,0.0001726,2]
[367615308,1750875048467,-460.0,0.0001726,2]
[367615309,1750875048477,-1145.21,0.0001726,2]
[367615310,1750875048487,-460.0,0.0001726,2]
[367615311,1750875048496,-605.2,0.0001726,2]
[367615312,1750875048505,-327.49593949,0.0001726,2]
[367615313,1750875048515,-151.0,0.0001726,2]
[367615314,1750875048528,-581.78,0.0001726,2]
[367615315,1750875048538,-297.58,0.0001726,2]
[367615316,1750875048548,-460.0,0.0001726,2]
[367615317,1750875048558,-460.0,0.0001726,2]
[367615318,1750875048569,-151.0,0.0001726,2]
[367615319,1750875048578,-310.1218657,0.0001726,2]
[367615320,1750875048588,-460.0,0.0001726,2]
[367615321,1750875048598,-460.0,0.0001726,2]
[367615322,1750875048608,-460.0,0.0001726,2]
[367615323,1750875048617,-460.0,0.0001726,2]
[367615324,1750875048627,-460.0,0.0001726,2]
[367615325,1750875048637,-460.0,0.0001726,2]
[367615326,1750875048648,-460.0,0.0001726,2]
[367615327,1750875048658,-285.38,0.0001726,2]
[367615328,1750875048667,-460.0,0.0001726,2]
[367615329,1750875048678,-460.0,0.0001726,2]
[367615330,1750875048688,-460.0,0.0001726,2]
[367615331,1750875048698,-151.0,0.0001726,2]
[367615332,1750875048708,-460.0,0.0001726,2]
[367615333,1750875048718,-460.0,0.0001726,2]
[367615334,1750875048728,-419.69656461,0.0001726,2]
[367615335,1750875048737,-460.0,0.0001726,2]
[367615336,1750875048747,-460.0,0.0001726,2]
[367615337,1750875048757,-460.0,0.0001726,2]
[367615338,1750875048766,-460.0,0.0001726,2]
[367615339,1750875048776,-460.0,0.0001726,2]
[367615340,1750875048786,-457.43,0.0001726,2]
[367615341,1750875048795,-1055.3,0.0001726,2]
[367615342,1750875048805,-460.0,0.0001726,2]
[367615343,1750875048815,-679.73,0.0001726,2]
[367615344,1750875048824,-460.0,0.0001726,2]
[367615345,1750875048834,-464.01,0.0001726,2]
[367615346,1750875048845,-3048.64,0.0001726,2]
[367615347,1750875048855,-460.0,0.0001726,2]
[367615348,1750875048864,-460.0,0.0001726,2]
[367615349,1750875048874,-151.0,0.0001726,2]
[367615350,1750875048884,-601.48,0.0001726,2]
[367615351,1750875048896,-161.89,0.0001726,2]
[367615352,1750875048906,-460.0,0.0001726,2]
[367615353,1750875048915,-460.0,0.0001726,2]
[367615354,1750875048925,-460.0,0.0001726,2]
[367615355,1750875048936,-559.06,0.0001726,2]
[367615356,1750875048946,-460.0,0.0001726,2]
[367615357,1750875048955,-883.76,0.0001726,2]
[367615358,1750875048965,-606.24,0.0001726,2]
[367615359,1750875048974,-2956.48,0.0001726,2]
[367615360,1750875048984,-521.58,0.0001726,2]
[367615361,1750875048993,-723.91,0.0001726,2]
[367615362,1750875049003,-460.0,0.0001726,2]
[367615363,1750875049013,-460.0,0.0001726,2]
[367615364,1750875049023,-671.7,0.0001726,2]
[367615365,1750875049033,-460.0,0.0001726,2]
[367615366,1750875049043,-4109.17,0.0001726,2]
[367615367,1750875049052,-395.59,0.0001726,2]
[367615368,1750875049066,-460.0,0.0001726,2]
[367615369,1750875049076,-460.0,0.0001726,2]
[367615370,1750875049086,-578.58,0.0001726,2]
[367615371,1750875049095,-2506.69,0.0001726,2]
[367615372,1750875049105,-426.99,0.0001726,2]
[367615373,1750875049114,-460.0,0.0001726,2]
[367615374,1750875049124,-460.0,0.0001726,2]
[367615375,1750875049134,-1334.99,0.0001726,2]
[367615376,1750875049143,-304.18,0.0001726,2]
[367615377,1750875049153,-669.22,0.0001726,2]
[367615378,1750875049162,-522.95,0.0001726,2]
[367615379,1750875049171,-3115.94,0.0001726,2]
[367615380,1750875049181,-460.0,0.0001726,2]
[367615381,1750875049190,-460.0,0.0001726,2]
[367615382,1750875049199,-460.0,0.0001726,2]
[367615383,1750875049209,-460.0,0.0001726,2]
[367615384,1750875049218,-460.0,0.0001726,2]
[367615385,1750875049228,-460.0,0.0001726,2]
[367615386,1750875049238,-509.29,0.0001726,2]
[367615387,1750875049247,-460.0,0.0001726,2]
[367615388,1750875049257,-460.0,0.0001726,2]
[367615389,1750875049266,-675.13,0.0001726,2]
[367615390,1750875049276,-460.0,0.0001726,2]
[367615391,1750875049286,-429.98,0.0001726,2]
[367615392,1750875049295,-151.0,0.0001726,2]
[367615393,1750875049305,-460.0,0.0001726,2]
[367615394,1750875049314,-4317.43,0.0001726,2]
[367615395,1750875049324,-151.0,0.0001726,2]
[367615396,1750875049334,-1381.31,0.0001726,2]
[367615397,1750875049344,-460.0,0.0001726,2]
[367615398,1750875049353,-556.94,0.0001726,2]
[367615399,1750875049363,-1467.85,0.0001726,2]
[367615400,1750875049372,-460.0,0.0001726,2]
[367615401,1750875049381,-1472.1,0.0001726,2]
[367615402,1750875049391,-556.15,0.0001726,2]
[367615403,1750875049400,-2321.22,0.0001726,2]
[367615404,1750875049409,-460.0,0.0001726,2]
[367615405,1750875049419,-541.67,0.0001726,2]
[367615406,1750875049429,-779.22,0.0001726,2]
[367615407,1750875049555,-460.0,0.0001726,2]
[367615408,1750875049581,-744.35,0.0001726,2]
[367615409,1750875049591,-3336.47,0.0001726,2]
[367615410,1750875049600,-773.1,0.0001726,2]
[367615411,1750875049609,-571.5,0.0001726,2]
[367615412,1750875049618,-460.0,0.0001726,2]
[367615413,1750875049627,-276.79,0.0001726,2]
[367615414,1750875049636,-588.76,0.0001726,2]
[367615415,1750875049645,-460.0,0.0001726,2]
[367615416,1750875049655,-500.87736512,0.00017283,2]
[367615417,1750875049664,-500.0,0.00017283,2]
[367615418,1750875049674,-225.48016869,0.00017285,2]
[367615419,1750875049684,-151.0,0.000173,2]
[367615420,1750875049693,-500.0,0.00017303,2]
[367615421,1750875049702,-500.0,0.0001735,2]
[367615422,1750875049712,-500.0,0.0001735,2]
[367615423,1750875049721,-500.0,0.0001735,2]
[367615424,1750875049730,-500.0,0.0001735,2]
[367615425,1750875049740,-500.0,0.0001735,2]
[367615426,1750875049750,-500.0,0.0001735,2]
[367615427,1750875049759,-500.0,0.0001735,2]
[367615428,1750875049769,-500.0,0.0001735,2]
[367615429,1750875049778,-500.0,0.0001735,2]
[367615430,1750875049788,-500.0,0.0001735,2]
[367615431,1750875049797,-1362.0896897,0.00017366,2]
[367615432,1750875049806,-500.0,0.00017394,2]
[367615433,1750875049816,-500.0,0.00017409,2]
[367615434,1750875049826,-4865.38270491,0.00017452,2]
[367615435,1750875049835,-177.4156324,0.00017458,2]
[367615436,1750875049844,-151.0,0.000175,2]
[367615437,1750875049853,-1000.0,0.000175,2]
[367615438,1750875049862,-168.0,0.00017515,2]
[367615439,1750875049872,-460.0,0.00017533,2]
[367615440,1750875049880,-151.0,0.00017533,2]
[367615441,1750875049890,-151.0,0.00017533,2]
[367615442,1750875049899,-151.0,0.00017533,2]
[367615443,1750875049908,-151.0,0.00017533,2]
[367615444,1750875049917,-151.0,0.00017533,2]
[367615445,1750875049926,-151.0,0.00017533,2]
[367615446,1750875049935,-919.91,0.00017533,2]
[367615447,1750875049944,-460.0,0.00017533,2]
[367615448,1750875049953,-1774.36,0.00017533,2]
[367615449,1750875049963,-460.0,0.00017533,2]
[367615450,1750875049972,-1067.85,0.00017533,2]
[367615451,1750875049981,-460.0,0.00017533,2]
[367615452,1750875049991,-1894.0,0.00017533,2]
[367615453,1750875050000,-531.84,0.00017533,2]
[367615454,1750875050011,-5355.52,0.00017533,2]
[367615455,1750875050021,-1378.42,0.00017533,2]
[367615456,1750875050030,-1835.32,0.00017533,2]
[367615457,1750875050039,-460.0,0.00017533,2]
[367615458,1750875050049,-1274.51,0.00017533,2]
[367615459,1750875050058,-460.0,0.00017533,2]
[367615460,1750875050068,-151.0,0.00017534,2]
[367615461,1750875050077,-151.0,0.00017534,2]
[367615462,1750875050086,-151.0,0.00017534,2]
[367615463,1750875050096,-151.0,0.00017534,2]
[367615464,1750875050105,-151.0,0.00017534,2]
[367615465,1750875050114,-151.0,0.00017534,2]
[367615466,1750875050123,-151.0,0.00017534,2]
[367615467,1750875050132,-151.0,0.00017534,2]
[367615468,1750875050141,-460.0,0.00017534,2]
[367615469,1750875050150,-460.0,0.00017534,2]
[367615470,1750875050159,-151.0,0.00017534,2]
[367615471,1750875050169,-151.0,0.00017534,2]
[367615472,1750875050177,-395.12021099,0.00017534,2]
[367615473,1750875050186,-460.0,0.00017534,2]
[367615474,1750875050196,-460.0,0.00017534,2]
[367615475,1750875050205,-460.0,0.00017534,2]
[367615476,1750875050214,-562.40738502,0.00017534,2]
[367615477,1750875050224,-442.68,0.00017534,2]
[367615478,1750875050233,-460.0,0.00017534,2]
[367615479,1750875050242,-151.0,0.00017534,2]
[367615480,1750875050252,-480.83956223,0.00017534,2]
[367615481,1750875050261,-197.23,0.00017534,2]
[367615482,1750875050271,-764.86,0.00017534,2]
[367615483,1750875050281,-603.24,0.00017534,2]
[367615484,1750875050290,-460.0,0.00017534,2]
[367615485,1750875050299,-464.18,0.00017534,2]
[367615486,1750875050308,-1145.21,0.00017534,2]
[367615487,1750875050318,-460.0,0.00017534,2]
[367615488,1750875050327,-177.74502,0.00017534,2]
[367615489,1750875050337,-581.78,0.00017534,2]
[367615490,1750875050346,-206.464079,0.00017534,2]
[367615491,1750875050355,-206.464079,0.00017534,2]
[367615492,1750875050364,-460.0,0.00017534,2]
[367615493,1750875050374,-460.0,0.00017534,2]
[367615494,1750875050384,-278.915758,0.00017534,2]
[367615495,1750875050394,-460.0,0.00017534,2]
[367615496,1750875050403,-460.0,0.00017534,2]
[367615497,1750875050413,-460.0,0.00017534,2]
[367615498,1750875050422,-460.0,0.00017534,2]
[367615499,1750875050431,-460.0,0.00017534,2]
[367615500,1750875050440,-460.0,0.00017534,2]
[367615501,1750875050450,-460.0,0.00017534,2]
[367615502,1750875050459,-460.0,0.00017534,2]
[367615503,1750875050468,-460.0,0.00017534,2]
[367615504,1750875050478,-460.0,0.00017534,2]
[367615505,1750875050487,-521.02,0.00017534,2]
[367615506,1750875050496,-405.99,0.00017534,2]
[367615507,1750875050515,-460.0,0.00017534,2]
[367615508,1750875050526,-460.0,0.00017534,2]
[367615509,1750875050536,-460.0,0.00017534,2]
[367615510,1750875050546,-597.54,0.00017534,2]
[367615511,1750875050556,-460.0,0.00017534,2]
[367615512,1750875050566,-1055.3,0.00017534,2]
[367615513,1750875050576,-460.0,0.00017534,2]
[367615514,1750875050586,-679.73,0.00017534,2]
[367615515,1750875050596,-460.0,0.00017534,2]
[367615516,1750875050605,-3048.64,0.00017534,2]
[367615517,1750875050615,-460.0,0.00017534,2]
[367615518,1750875050624,-460.0,0.00017534,2]
[367615519,1750875050634,-151.0,0.00017534,2]
[367615520,1750875050643,-601.48,0.00017534,2]
[367615521,1750875050653,-460.0,0.00017534,2]
[367615522,1750875050662,-460.0,0.00017534,2]
[367615523,1750875050672,-460.0,0.00017534,2]
[367615524,1750875050682,-559.06,0.00017534,2]
[367615525,1750875050691,-472.55,0.00017534,2]
[367615526,1750875050701,-883.76,0.00017534,2]
[367615527,1750875050710,-2956.48,0.00017534,2]
[367615528,1750875050719,-606.24,0.00017534,2]
[367615529,1750875050729,-521.58,0.00017534,2]
[367615530,1750875050738,-723.91,0.00017534,2]
[367615531,1750875050748,-198.79429252,0.00017534,2]
[367615532,1750875050758,-465.9541284,0.00017534,2]
[367615533,1750875050768,-671.7,0.00017534,2]
[367615534,1750875050777,-460.0,0.00017534,2]
[367615535,1750875050787,-4109.17,0.00017534,2]
[367615536,1750875050796,-460.0,0.00017534,2]
[367615537,1750875050806,-460.0,0.00017534,2]
[367615538,1750875050816,-578.58,0.00017534,2]
[367615539,1750875050825,-2506.69,0.00017534,2]
[367615540,1750875050835,-460.0,0.00017534,2]
[367615541,1750875050844,-460.0,0.00017534,2]
[367615542,1750875050854,-1334.99,0.00017534,2]
[367615543,1750875050864,-669.22,0.00017534,2]
[367615544,1750875050874,-522.95,0.00017534,2]
[367615545,1750875050883,-3115.94,0.00017534,2]
[367615546,1750875050892,-460.0,0.00017534,2]
[367615547,1750875050902,-460.0,0.00017534,2]
[367615548,1750875050911,-460.0,0.00017534,2]
[367615549,1750875050921,-460.0,0.00017534,2]
[367615550,1750875050930,-402.0,0.00017534,2]
[367615551,1750875050940,-509.29,0.00017534,2]
[367615552,1750875050949,-460.0,0.00017534,2]
[367615553,1750875050959,-460.0,0.00017534,2]
[367615554,1750875050969,-675.13,0.00017534,2]
[367615555,1750875050979,-460.0,0.00017534,2]
[367615556,1750875050988,-151.0,0.00017534,2]
[367615557,1750875050997,-460.0,0.00017534,2]
[367615558,1750875051008,-4317.43,0.00017534,2]
[367615559,1750875051018,-151.0,0.00017534,2]
[367615560,1750875051028,-1381.31,0.00017534,2]
[367615561,1750875051038,-565.5866044,0.00017534,2]
[367615562,1750875051047,-556.94,0.00017534,2]
[367615563,1750875051058,-1467.85,0.00017534,2]
[367615564,1750875051069,-460.0,0.00017534,2]
[367615565,1750875051079,-1472.1,0.00017534,2]
[367615566,1750875051089,-556.15,0.00017534,2]
[367615567,1750875051099,-2321.22,0.00017534,2]
[367615568,1750875051110,-303.35,0.00017534,2]
[367615569,1750875051119,-541.67,0.00017534,2]
[367615570,1750875051128,-779.22,0.00017534,2]
[367615571,1750875051140,-460.0,0.00017534,2]
[367615572,1750875051148,-744.35,0.00017534,2]
[367615573,1750875051158,-3336.47,0.00017534,2]
[367615574,1750875051167,-773.1,0.00017534,2]
[367615575,1750875051176,-571.5,0.00017534,2]
[367615576,1750875051186,-460.0,0.00017534,2]
[367615577,1750875051195,-588.76,0.00017534,2]
[367615578,1750875051204,-460.0,0.00017534,2]
[367615579,1750875051214,-5000.0,0.00017548,2]
[367615580,1750875051223,-1362.0896897,0.00017708,2]
[367615581,1750875051233,-4865.38270491,0.00017728,2]
[367615582,1750875051243,-151.0,0.00017728,2]
[367615583,1750875051252,-151.0,0.00017728,2]
[367615584,1750875051262,-151.0,0.00017728,2]
[367615585,1750875051271,-1000.0,0.00017734,2]
[367615586,1750875051281,-500.0,0.00017734,2]
[367615587,1750875051291,-500.0,0.00017742,2]
[367615588,1750875051300,-1000.0,0.00017748,2]
[367615589,1750875051310,-1000.0,0.00017748,2]
[367615590,1750875051319,-1000.0,0.00017748,2]
[367615591,1750875051328,-800.0,0.00017752,2]
[367615592,1750875051338,-800.0,0.00017764,2]
[367615593,1750875051347,-406.0,0.00017765,2]
[367615594,1750875051356,-800.0,0.00017767,2]
[367615595,1750875051366,-800.0,0.00017769,2]
[367615596,1750875051376,-800.0,0.00017776,2]
[367615597,1750875051385,-406.0,0.0001778,2]
[367615598,1750875051395,-581.62,0.00017798,3]
[367615599,1750875051405,-151.0,0.000178,2]
[367615600,1750875051414,-800.0,0.00017803,2]
[367615601,1750875051423,-919.91,0.00017807,2]
[367615602,1750875051433,-321.06,0.00017807,2]
[367615603,1750875051445,-1774.36,0.00017807,2]
[367615604,1750875051454,-460.0,0.00017807,2]
[367615605,1750875051463,-1067.85,0.00017807,2]
[367615606,1750875051472,-460.0,0.00017807,2]
[367615607,1750875051482,-1894.0,0.00017807,2]
[367615608,1750875051491,-531.84,0.00017807,2]
[367615609,1750875051501,-5355.52,0.00017807,2]
[367615610,1750875051510,-1378.42,0.00017807,2]
[367615611,1750875051521,-1835.32,0.00017807,2]
[367615612,1750875051531,-460.0,0.00017807,2]
[367615613,1750875051539,-1274.51,0.00017807,2]
[367615614,1750875051549,-460.0,0.00017807,2]
[367615615,1750875051558,-262.65229,0.00017808,2]
[367615616,1750875051571,-151.0,0.00017808,2]
[367615617,1750875051581,-151.0,0.00017808,2]
[367615618,1750875051590,-151.0,0.00017808,2]
[367615619,1750875051599,-151.0,0.00017808,2]
[367615620,1750875051609,-151.0,0.00017808,2]
[367615621,1750875051619,-151.0,0.00017808,2]
[367615622,1750875051628,-151.0,0.00017808,2]
[367615623,1750875051638,-151.0,0.00017808,2]
[367615624,1750875051647,-460.0,0.00017808,2]
[367615625,1750875051657,-460.0,0.00017808,2]
[367615626,1750875051667,-564.43,0.00017808,2]
[367615627,1750875051676,-151.0,0.00017808,2]
[367615628,1750875051685,-460.0,0.00017808,2]
[367615629,1750875051695,-460.0,0.00017808,2]
[367615630,1750875051704,-151.0,0.00017808,2]
[367615631,1750875051714,-151.0,0.00017808,2]
[367615632,1750875051724,-151.0,0.00017808,2]
[367615633,1750875051733,-460.0,0.00017808,2]
[367615634,1750875051743,-151.0,0.00017808,2]
[367615635,1750875051752,-764.86,0.00017808,2]
[367615636,1750875051761,-603.24,0.00017808,2]
[367615637,1750875051773,-460.0,0.00017808,2]
[367615638,1750875051782,-1145.21,0.00017808,2]
[367615639,1750875051791,-151.0,0.00017808,2]
[367615640,1750875051802,-460.0,0.00017808,2]
[367615641,1750875051812,-151.0,0.00017808,2]
[367615642,1750875051822,-581.78,0.00017808,2]
[367615643,1750875051831,-206.464079,0.00017808,2]
[367615644,1750875051841,-206.464079,0.00017808,2]
[367615645,1750875051851,-460.0,0.00017808,2]
[367615646,1750875051862,-162.92,0.00017808,2]
[367615647,1750875051872,-460.0,0.00017808,2]
[367615648,1750875051882,-151.0,0.00017808,2]
[367615649,1750875051891,-460.0,0.00017808,2]
[367615650,1750875051901,-460.0,0.00017808,2]
[367615651,1750875051911,-460.0,0.00017808,2]
[367615652,1750875051920,-460.0,0.00017808,2]
[367615653,1750875051931,-280.90197237,0.00017808,2]
[367615654,1750875051940,-460.0,0.00017808,2]
[367615655,1750875051950,-460.0,0.00017808,2]
[367615656,1750875051960,-460.0,0.00017808,2]
[367615657,1750875051969,-460.0,0.00017808,2]
[367615658,1750875051978,-199.23428964,0.00017808,2]
[367615659,1750875051987,-460.0,0.00017808,2]
[367615660,1750875051997,-460.0,0.00017808,2]
[367615661,1750875052007,-238.77307546,0.00017808,2]
[367615662,1750875052016,-1055.3,0.00017808,2]
[367615663,1750875052028,-460.0,0.00017808,2]
[367615664,1750875052038,-679.73,0.00017808,2]
[367615665,1750875052048,-423.05519768,0.00017808,2]
[367615666,1750875052059,-3048.64,0.00017808,2]
[367615667,1750875052069,-460.0,0.00017808,2]
[367615668,1750875052078,-460.0,0.00017808,2]
[367615669,1750875052087,-151.0,0.00017808,2]
[367615670,1750875052097,-601.48,0.00017808,2]
[367615671,1750875052106,-460.0,0.00017808,2]
[367615672,1750875052115,-460.0,0.00017808,2]
[367615673,1750875052124,-543.70753493,0.00017808,2]
[367615674,1750875052134,-559.06,0.00017808,2]
[367615675,1750875052143,-883.76,0.00017808,2]
[367615676,1750875052153,-2956.48,0.00017808,2]
[367615677,1750875052162,-606.24,0.00017808,2]
[367615678,1750875052171,-521.58,0.00017808,2]
[367615679,1750875052180,-723.91,0.00017808,2]
[367615680,1750875052190,-671.7,0.00017808,2]
[367615681,1750875052199,-533.82,0.00017808,2]
[367615682,1750875052208,-4109.17,0.00017808,2]
[367615683,1750875052218,-460.0,0.00017808,2]
[367615684,1750875052227,-460.0,0.00017808,2]
[367615685,1750875052237,-578.58,0.00017808,2]
[367615686,1750875052246,-2506.69,0.00017808,2]
[367615687,1750875052255,-265.99,0.00017808,2]
[367615688,1750875052265,-1334.99,0.00017808,2]
[367615689,1750875052276,-669.22,0.00017808,2]
[367615690,1750875052285,-522.95,0.00017808,2]
[367615691,1750875052294,-3115.94,0.00017808,2]
[367615692,1750875052304,-460.0,0.00017808,2]
[367615693,1750875052314,-460.0,0.00017808,2]
[367615694,1750875052323,-460.0,0.00017808,2]
[367615695,1750875052333,-460.0,0.00017808,2]
[367615696,1750875052343,-509.29,0.00017808,2]
[367615697,1750875052352,-460.0,0.00017808,2]
[367615698,1750875052363,-460.0,0.00017808,2]
[367615699,1750875052372,-675.13,0.00017808,2]
[367615700,1750875052381,-460.0,0.00017808,2]
[367615701,1750875052391,-151.0,0.00017808,2]
[367615702,1750875052400,-460.0,0.00017808,2]
[367615703,1750875052408,-4317.43,0.00017808,2]
[367615704,1750875052418,-151.0,0.00017808,2]
[367615705,1750875052427,-1381.31,0.00017808,2]
[367615706,1750875052436,-1467.85,0.00017808,2]
[367615707,1750875052445,-556.94,0.00017808,2]
[367615708,1750875052454,-460.0,0.00017808,2]
[367615709,1750875052465,-1472.1,0.00017808,2]
[367615710,1750875052475,-556.15,0.00017808,2]
[367615711,1750875052485,-2321.22,0.00017808,2]
[367615712,1750875052494,-541.67,0.00017808,2]
[367615713,1750875052503,-779.22,0.00017808,2]
[367615714,1750875052512,-250.72,0.00017808,2]
[367615715,1750875052522,-744.35,0.00017808,2]
[367615716,1750875052531,-3336.47,0.00017808,2]
[367615717,1750875052540,-773.1,0.00017808,2]
[367615718,1750875052550,-571.5,0.00017808,2]
[367615719,1750875052559,-357.18156744,0.00017808,2]
[367615720,1750875052569,-588.76,0.00017808,2]
[367615721,1750875052578,-800.0,0.00017823,2]
[367615722,1750875052587,-800.0,0.00017826,2]
[367615723,1750875052596,-800.0,0.00017835,2]
[367615724,1750875052605,-195.87991591,0.00017841,2]
[367615725,1750875052615,-800.0,0.00017848,2]
[367615726,1750875052624,-1000.0,0.0001785,2]
[367615727,1750875052634,-800.0,0.00017856,2]
[367615728,1750875052643,-800.0,0.00017891,2]
[367615729,1750875052652,-965.0,0.00017896,2]